bitfinex/quotes_ETHUSD_20251008
["timestamp","ask_amount","ask_price","bid_price","bid_amount"]
[1759901239983,0.02246449,4433.8,4432.9,2.25580947]
[1759901240185,0.02246449,4433.8,4433.0,4.83936243]
[1759901240384,0.01,4433.9,4433.0,2.561]
[1759901240662,0.01,4433.9,4433.3,2.25562084]
[1759901240861,0.01,4433.9,4433.5,2.25555288]
[1759901241062,0.01,4433.9,4433.7,2.2554026]
[1759901241458,0.01,4433.9,4433.6,2.561]
[1759901241664,0.01,4433.9,4433.8,2.25540168]
[1759901241858,0.01,4433.9,4433.7,0.1504]
[1759901242096,0.01,4433.9,4433.6,2.561]
[1759901242994,0.01,4433.9,4433.8,2.25540168]
[1759901243194,0.01,4433.9,4433.7,2.27799812]
[1759901243396,0.01,4433.9,4433.6,2.7114]
[1759901243574,0.01,4433.9,4433.6,4.96690338]
[1759901243781,0.01,4433.9,4433.7,2.25544194]
[1759901244098,0.01,4433.9,4433.7,2.25544441]
[1759901244411,0.01,4433.9,4433.6,2.561]
[1759901244576,0.01,4433.9,4433.8,0.17295401]
[1759901245208,0.01,4433.9,4433.8,2.42835569]
[1759901245910,0.01,4433.9,4433.8,2.54035569]
[1759901248013,0.01,4433.9,4433.8,2.51780168]
[1759901248817,0.01,4433.9,4433.8,2.54035569]
[1759901249907,0.01,4433.9,4433.8,2.51780168]
[1759901250913,0.002,4434.2,4434.1,2.25524909]
[1759901251114,0.002,4434.2,4434.1,7.39140158]
[1759901251300,0.01,4434.9,4434.1,7.39140158]
[1759901251301,0.01,4434.9,4434.8,2.25489311]
[1759901251504,0.01,4434.9,4434.8,4.92689311]
[1759901251689,0.01,4434.9,4434.8,5.07729311]
[1759901254137,0.002,4435.3,4435.0,2.25479143]
[1759901254438,0.002,4435.3,4435.0,2.27733934]
[1759901254729,0.002,4435.3,4435.0,2.42773934]
[1759901255132,0.002,4435.3,4435.0,2.40519143]
[1759901256723,12.25300858,4438.6,4435.0,2.40519143]
[1759901256724,0.01,4438.9,4435.3,0.6336]
[1759901256907,0.4286,4438.4,4436.2,1.92]
[1759901257108,0.02246449,4438.3,4436.3,6.75567199]
[1759901257334,0.4286,4438.0,4436.3,6.88353069]
[1759901258191,0.01,4438.9,4436.3,16.40209151]
[1759901258388,0.02246449,4438.6,4436.3,2.0704]
[1759901258619,0.4286,4437.8,4436.3,6.88353069]
[1759901259295,0.02246449,4437.7,4436.3,6.88353069]
[1759901260416,0.4286,4437.8,4436.3,4.17413069]
[1759901260621,0.4286,4437.8,4436.3,6.88353069]
[1759901262098,0.01,4437.9,4436.3,6.88353069]
[1759901262297,0.4406,4437.4,4436.2,2.25416396]
[1759901262511,0.4406,4437.4,4435.6,1.92]
[1759901262512,0.4406,4437.1,4436.3,2.559]
[1759901262712,0.4406,4437.1,4436.3,4.81313069]
[1759901263331,0.03246449,4437.9,4436.3,4.81213069]
[1759901263629,0.4406,4437.5,4436.3,4.81213069]
[1759901263833,0.4406,4437.5,4436.3,4.96253069]
[1759901264233,0.4406,4437.5,4436.3,4.81213069]
[1759901265303,0.02246449,4437.4,4436.3,4.81213069]
[1759901265505,0.4406,4437.2,4436.3,4.81213069]
[1759901265710,0.4406,4437.2,4435.8,2.25438477]
[1759901265912,0.4406,4437.2,4436.3,2.25413069]
[1759901266228,0.46306449,4437.6,4436.3,4.81213069]
[1759901266432,0.4406,4437.6,4436.3,2.25413069]
[1759901266631,0.4406,4437.6,4436.3,4.96253069]
[1759901266927,0.4406,4437.6,4436.3,5.07453069]
[1759901267335,0.112,4437.7,4436.3,5.07453069]
[1759901267834,0.4406,4437.6,4436.3,2.51653069]
[1759901268132,0.112,4437.7,4436.3,2.51653069]
[1759901268133,0.112,4437.7,4436.3,7.62813069]
[1759901268303,0.01,4437.9,4436.3,7.62813069]
[1759901268504,0.012,4436.9,4436.3,7.62813069]
[1759901269133,0.012,4436.9,4436.3,6.99453069]
[1759901269433,0.012,4436.9,4436.3,4.43653069]
[1759901269602,0.012,4436.9,4436.3,6.99453069]
[1759901274235,0.012,4436.9,4436.3,7.62813069]
[1759901275013,0.012,4436.9,4436.3,11.58135005]
[1759901276628,0.012,4436.9,4436.3,11.58035005]
[1759901276827,0.012,4436.9,4436.3,9.02335005]
[1759901277438,0.012,4436.9,4436.3,11.58035005]
[1759901277654,0.012,4436.9,4436.3,8.38975005]
[1759901277814,0.012,4436.9,4436.3,10.94675005]
[1759901283235,0.012,4436.9,4436.3,2.51653069]
[1759901283590,0.20850397,4436.8,4436.3,5.07353069]
[1759901283857,0.012,4436.9,4436.3,5.07353069]
[1759901284226,0.012,4436.9,4436.3,0.112]
[1759901284423,0.4521,4436.7,4436.3,0.112]
[1759901284622,0.23096788,4436.6,4436.3,2.557]
[1759901284857,0.95650547,4436.4,4436.3,2.557]
[1759901285047,0.95650547,4436.4,4436.1,0.112]
[1759901285250,0.66064176,4436.3,4436.2,2.557]
[1759901286259,0.4521,4436.3,4436.2,2.557]
[1759901288829,0.29590208,4436.4,4436.2,2.557]
[1759901289053,0.002,4436.4,4436.2,2.557]
[1759901290242,0.4541,4436.4,4436.2,2.557]
[1759901290928,0.4521,4436.3,4436.2,2.557]
[1759901294480,0.4521,4436.3,4436.1,0.112]
[1759901294647,0.002,4436.4,4436.2,2.557]
[1759901295387,0.4521,4436.3,4436.2,2.557]
[1759901296310,2.25433395,4435.9,4435.8,0.001]
[1759901296756,2.72889844,4435.9,4435.8,0.001]
[1759901297602,0.47456449,4435.9,4435.8,0.001]
[1759901297883,0.002,4436.4,4435.8,0.113]
[1759901298088,2.70818155,4436.4,4435.8,0.113]
[1759901298391,0.30672909,4436.3,4435.8,0.113]
[1759901298613,2.70628273,4436.2,4435.8,0.113]
[1759901298892,0.30672909,4436.3,4435.8,0.001]
[1759901298893,0.47456449,4436.1,4435.8,0.001]
[1759901299104,0.112,4436.0,4435.8,0.001]
[1759901299384,2.27679844,4435.9,4435.8,0.001]
[1759901299689,2.72889844,4435.9,4435.8,0.001]
[1759901301859,2.70643395,4435.9,4435.8,0.001]
[1759901302058,3.23616586,4435.9,4435.8,0.001]
[1759901302801,0.52973191,4435.9,4435.8,0.001]
[1759901303003,0.02246449,4435.9,4435.8,0.001]
[1759901303203,0.47696449,4435.9,4435.8,0.001]
[1759901303498,2.73129844,4435.9,4435.8,0.001]
[1759901306575,0.47696449,4435.9,4435.8,0.001]
[1759901308606,2.73129844,4435.9,4435.8,0.001]
[1759901308800,0.98671774,4435.9,4435.8,0.001]
[1759901309002,2.36629788,4436.0,4435.8,0.001]
[1759901309202,0.02246449,4435.9,4435.8,0.001]
[1759901309509,0.47696449,4435.9,4435.8,0.001]
[1759901309687,2.73129844,4435.9,4435.8,0.001]
[1759901311307,0.47696449,4435.9,4435.8,0.001]
[1759901311603,2.73129844,4435.9,4435.8,0.001]
[1759901311808,3.24105439,4435.9,4435.8,0.001]
[1759901316282,3.44923775,4435.9,4435.8,0.001]
[1759901316611,5.84888333,4435.9,4435.8,0.001]
[1759901316783,5.82641884,4435.9,4435.8,0.001]
[1759901316989,5.91678521,4435.9,4435.8,0.001]
[1759901318399,39.10938521,4435.9,4435.8,0.001]
[1759901319218,39.70808015,4435.9,4435.8,0.001]
[1759901319415,39.10938521,4435.9,4435.8,0.001]
[1759901320988,6.55238521,4435.9,4435.8,0.001]
[1759901321187,9.10938521,4435.9,4435.8,0.001]
[1759901322419,6.55238521,4435.9,4435.8,0.001]
[1759901322597,8.47578521,4435.9,4435.8,0.001]
[1759901323214,5.91878521,4435.9,4435.8,0.001]
[1759901323416,8.47578521,4435.9,4435.8,0.001]
[1759901323715,5.91878521,4435.9,4435.8,0.001]
[1759901323915,8.47578521,4435.9,4435.8,0.001]
[1759901324819,39.10938521,4435.9,4435.8,0.001]
[1759901325017,39.70808015,4435.9,4435.8,0.001]
[1759901325318,39.10938521,4435.9,4435.8,0.001]
[1759901325517,39.9086438,4435.9,4435.8,0.001]
[1759901325923,2.25474059,4435.1,4435.0,0.001]
[1759901326124,7.44203402,4435.1,4435.0,0.001]
[1759901326298,7.41956953,4435.1,4435.0,0.001]
[1759901326496,7.96066953,4435.1,4435.0,0.001]
[1759901327935,5.40366953,4435.1,4435.0,0.001]
[1759901328099,7.7123418,4435.1,4435.0,0.001]
[1759901328655,8.19138738,4435.1,4435.0,0.001]
[1759901329641,8.30338738,4435.1,4435.0,0.001]
[1759901337426,8.76326245,4435.1,4435.0,0.001]
[1759901338149,6.20626245,4435.1,4435.0,0.001]
[1759901338349,8.76326245,4435.1,4435.0,0.001]
[1759901339774,4.97384294,4435.1,4435.0,0.001]
[1759901339988,7.49199736,4435.1,4435.0,0.001]
[1759901340348,7.97134591,4435.1,4435.0,0.001]
[1759901344393,5.41434591,4435.1,4435.0,0.001]
[1759901344592,7.97134591,4435.1,4435.0,0.001]
[1759901344794,9.03836549,4435.1,4435.0,0.001]
[1759901348859,6.48136549,4435.1,4435.0,0.001]
[1759901349063,9.03836549,4435.1,4435.0,0.001]
[1759901349797,3.38234591,4435.1,4435.0,0.001]
[1759901349958,5.94062434,4435.1,4435.0,0.001]
[1759901350158,5.45999736,4435.1,4435.0,0.001]
[1759901351395,2.25474059,4435.1,4435.0,0.001]
[1759901351774,2.27720508,4435.1,4435.0,0.001]
[1759901353995,2.71740508,4435.1,4435.0,0.001]
[1759901354192,2.92592749,4435.1,4435.0,0.001]
[1759901354395,2.71740508,4435.1,4435.0,0.001]
[1759901355097,0.02246449,4435.1,4435.0,0.001]
[1759901355298,2.25474059,4435.1,4435.0,0.001]
[1759901355597,0.4402,4435.1,4435.0,0.001]
[1759901356765,0.02246449,4435.2,4435.0,0.001]
[1759901356982,0.02246449,4435.3,4435.0,0.001]
[1759901357574,0.114,4435.4,4435.0,0.001]
[1759901357774,0.002,4435.4,4435.0,0.001]
[1759901357982,0.002,4435.4,4435.0,0.113]
[1759901359889,0.002,4435.4,4435.1,0.0225474]
[1759901360064,0.002,4435.4,4435.1,0.1729474]
[1759901360596,0.002,4435.4,4435.2,0.112]
[1759901363614,0.002,4435.4,4435.2,0.2624]
[1759901365100,0.002,4435.4,4435.3,0.1504]
[1759901365400,0.002,4435.4,4435.2,0.36381283]
[1759901365798,0.002,4435.4,4435.3,2.42758529]
[1759901367975,0.002,4435.4,4435.3,4.98358529]
[1759901368313,0.002,4435.4,4435.3,5.33162162]
[1759901368673,0.002,4435.4,4435.3,9.28906357]
[1759901369601,0.002,4435.4,4435.3,11.84266357]
[1759901370013,0.002,4435.4,4435.3,12.04498403]
[1759901370173,0.002,4435.4,4435.3,26.99803072]
[1759901370578,0.002,4436.3,4436.2,2.2541815]
[1759901370800,0.002,4436.3,4436.2,11.6586416]
[1759901371001,0.002,4436.3,4436.2,11.8090416]
[1759901371516,0.002,4436.3,4436.2,26.3090416]
[1759901372180,1e-08,4436.4,4436.3,2.25413069]
[1759901372386,1e-08,4436.4,4436.3,5.37764938]
[1759901372603,1e-08,4436.4,4436.3,5.35510808]
[1759901375109,1e-08,4436.4,4436.3,5.46710808]
[1759901375278,0.012,4436.9,4436.3,3.21297739]
[1759901375479,0.112,4439.0,4436.9,2.5536]
[1759901375783,0.112,4439.0,4437.2,8.87671543]
[1759901376087,0.112,4439.0,4437.2,11.43171543]
[1759901376287,0.112,4439.0,4437.2,11.58211543]
[1759901376602,0.02246449,4439.3,4437.2,11.58211543]
[1759901376779,2.25268159,4439.2,4437.2,26.08211543]
[1759901376980,0.45746449,4439.1,4437.2,26.08211543]
[1759901377215,2.71018475,4439.1,4437.2,23.52711543]
[1759901377429,0.445,4438.9,4437.2,26.08211543]
[1759901377803,2.25286796,4438.8,4437.2,26.08211543]
[1759901378002,0.02246449,4438.7,4437.2,26.08211543]
[1759901379133,0.02246449,4438.7,4437.2,22.12367348]
[1759901379298,2.69781496,4438.9,4437.2,22.12367348]
[1759901379299,0.02246449,4438.8,4437.2,22.12367348]
[1759901379699,0.01,4438.9,4437.2,22.12367348]
[1759901380151,0.01,4438.9,4437.2,22.21395664]
[1759901380305,0.01,4438.9,4437.2,22.10195664]
[1759901384002,0.01,4438.9,4437.2,19.54795664]
[1759901384334,0.01,4438.9,4437.2,26.05939859]
[1759901384535,0.01,4438.9,4437.2,25.42579859]
[1759901384736,0.01,4438.9,4438.8,2.25286113]
[1759901384898,0.01,4438.9,4438.8,4.17286113]
[1759901385103,0.01,4438.9,4438.8,21.37726113]
[1759901385302,0.01,4438.9,4438.8,14.9316]
[1759901385519,0.01,4438.9,4438.8,17.4856]
[1759901385714,0.01,4438.9,4438.8,2.554]
[1759901387538,0.01,4438.9,4438.8,4.80686113]
[1759901390423,0.01,4438.9,4438.8,4.91886113]
[1759901391020,0.01,4438.9,4438.8,0.112]
[1759901391220,0.01,4438.9,4438.8,2.665]
[1759901391534,0.012,4438.9,4438.8,4.95626113]
[1759901392242,0.012,4438.9,4438.8,6.87626113]
[1759901392243,1e-08,4438.9,4438.8,6.87626113]
[1759901392623,1e-08,4438.9,4438.8,21.46651516]
[1759901394315,1e-08,4438.9,4438.8,22.10011516]
[1759901395347,1e-08,4438.9,4438.8,21.46651516]
[1759901395736,1e-08,4438.9,4438.8,18.91351516]
[1759901396053,1e-08,4438.9,4438.8,21.46651516]
[1759901398751,1e-08,4438.9,4438.8,19.54711516]
[1759901398952,1e-08,4438.9,4438.8,22.09911516]
[1759901400459,1e-08,4438.9,4438.8,22.46170805]
[1759901400623,0.002,4439.4,4439.3,6.21004934]
[1759901400956,0.002,4439.4,4439.3,8.76204934]
[1759901401156,0.002,4440.2,4439.4,2.88615665]
[1759901401359,1e-08,4439.9,4439.8,8.76339565]
[1759901401656,1e-08,4439.9,4439.8,11.42739565]
[1759901402047,0.002,4441.2,4440.4,0.6336]
[1759901402245,0.002,4441.2,4440.9,2.88537075]
[1759901402464,0.002,4441.2,4441.1,4.1716944]
[1759901402644,0.002,4441.2,4441.1,19.3052944]
[1759901402961,0.002,4441.2,4441.1,21.2236944]
[1759901403333,0.002,4441.2,4441.1,21.3740944]
[1759901403528,0.002,4441.2,4441.1,21.2236944]
[1759901403862,0.002,4441.2,4440.8,2.2518438]
[1759901404041,0.002,4441.2,4440.5,2.25199012]
[1759901404042,0.4703,4441.2,4440.5,2.25199012]
[1759901404237,0.02246449,4441.1,4440.6,2.552]
[1759901404428,0.22995091,4441.1,4440.6,2.552]
[1759901404632,0.4683,4441.0,4440.6,2.552]
[1759901404939,0.22995091,4441.1,4440.6,2.552]
[1759901404940,0.02246449,4441.1,4440.6,2.552]
[1759901405330,0.02246449,4441.1,4439.5,3.95744195]
[1759901405331,0.4683,4441.1,4439.8,14.5]
[1759901405563,2.927587,4441.0,4439.9,2.552]
[1759901405767,2.25185405,4440.8,4439.9,2.552]
[1759901405968,0.69825969,4440.7,4439.9,2.552]
[1759901406156,0.2074952,4440.6,4439.9,2.552]
[1759901406340,0.2074952,4440.6,4440.0,2.25225138]
[1759901406548,0.2074952,4440.6,4440.1,2.552]
[1759901406843,0.2074952,4440.6,4439.5,2.40286033]
[1759901407048,0.2074952,4440.6,4439.6,2.552]
[1759901407049,0.49076449,4440.5,4439.6,2.552]
[1759901407754,0.02246449,4441.0,4440.0,2.2522038]
[1759901407957,0.27445066,4440.9,4440.1,2.57452201]
[1759901408134,0.4703,4441.2,4440.1,2.57452201]
[1759901408135,0.69830107,4440.8,4440.1,2.552]
[1759901408331,0.67583658,4440.7,4440.1,2.552]
[1759901408554,0.23000107,4440.6,4440.1,2.552]
[1759901408765,0.52501651,4440.6,4439.2,14.5]
[1759901409035,0.67583658,4440.5,4439.6,2.25244855]
[1759901409259,0.23000107,4440.4,4439.7,2.552]
[1759901409465,0.23000107,4440.4,4439.7,4.80435382]
[1759901409647,0.23000107,4440.4,4439.8,2.25234716]
[1759901409853,0.23000107,4440.4,4439.9,2.552]
[1759901410167,0.52503166,4440.4,4439.9,2.552]
[1759901410470,0.4683,4440.3,4439.9,2.552]
[1759901410774,2.95060271,4440.2,4440.0,2.552]
[1759901411068,0.67598213,4440.1,4439.9,2.552]
[1759901411296,0.23014662,4440.0,4439.8,2.552]
[1759901411473,0.67602597,4439.9,4439.3,2.25260059]
[1759901411633,0.4683,4439.9,4439.4,2.552]
[1759901411838,0.4683,4439.8,4439.1,0.01]
[1759901412072,0.02246449,4440.0,4439.5,2.25249973]
[1759901412388,0.02246449,4440.0,4439.1,0.01]
[1759901412389,0.49076449,4440.0,4439.6,2.552]
[1759901412591,0.02246449,4439.9,4439.6,2.552]
[1759901412880,0.4683,4439.8,4439.6,2.552]
[1759901413049,0.49076449,4439.7,4439.6,2.552]
[1759901413251,0.112,4440.1,4439.6,2.552]
[1759901413576,0.20776478,4440.2,4439.7,0.02252404]
[1759901413783,0.20776478,4440.1,4439.9,2.25230029]
[1759901413961,0.02446449,4440.5,4440.0,2.552]
[1759901414270,0.74276645,4440.4,4440.0,2.552]
[1759901414474,0.23022681,4440.3,4440.0,2.552]
[1759901414672,0.20776232,4440.2,4440.0,2.552]
[1759901415089,0.20776232,4440.2,4439.7,2.25240417]
[1759901415090,0.20776232,4440.2,4439.7,4.80440417]
[1759901415291,0.20776232,4440.2,4439.8,2.25233433]
[1759901415505,0.20776232,4440.1,4439.7,2.552]
[1759901415715,0.20776232,4440.1,4439.7,4.80439869]
[1759901415920,0.4683,4440.1,4439.7,4.80439869]
[1759901416124,2.25400561,4440.5,4439.8,2.552]
[1759901416125,0.6985601,4440.0,4439.8,2.552]
[1759901416421,0.67611436,4439.9,4439.2,2.25265524]
[1759901416622,0.4683,4439.9,4439.3,4.80460535]
[1759901416825,0.49076449,4440.2,4439.4,2.25255453]
[1759901416986,0.20781786,4440.1,4439.4,2.25255453]
[1759901417315,0.02246449,4440.0,4439.5,2.25250219]
[1759901417525,0.02246449,4440.0,4439.3,2.552]
[1759901417736,0.4683,4439.9,4439.3,2.552]
[1759901418044,2.25250535,4439.6,4439.4,2.552]
[1759901418180,2.25250535,4439.6,4439.1,0.01]
[1759901418181,0.49076449,4439.5,4439.1,0.01]
[1759901418376,0.49076449,4439.5,4439.3,2.551]
[1759901418579,0.4683,4439.4,4439.3,2.551]
[1759901418990,2.99518998,4439.4,4439.1,0.01]
[1759901419188,0.02246449,4439.3,4439.1,2.561]
[1759901419501,0.4683,4439.2,4439.1,0.01]
[1759901419888,0.49076449,4439.2,4439.1,0.01]
[1759901420095,0.4683,4439.2,4439.1,0.01]
[1759901420297,0.76285539,4439.2,4439.1,0.01]
[1759901421404,2.74342262,4439.2,4439.1,0.01]
[1759901422406,0.49076449,4439.2,4439.1,0.01]
[1759901422623,0.4608,4439.5,4439.1,0.01]
[1759901422828,0.4608,4439.8,4439.2,2.2526562]
[1759901423035,0.02246449,4439.7,4439.3,2.552]
[1759901423343,0.69100567,4439.7,4439.3,2.552]
[1759901423530,0.4608,4439.6,4439.3,2.552]
[1759901423726,0.48326449,4439.5,4439.3,2.552]
[1759901424705,0.4608,4439.4,4439.1,0.01]
[1759901425227,2.27456791,4440.3,4439.1,0.01]
[1759901425228,2.36465813,4439.2,4439.1,0.01]
[1759901425730,2.82545813,4439.2,4439.1,0.01]
[1759901426432,3.03289112,4439.2,4439.1,0.01]
[1759901427548,2.82545813,4439.2,4439.1,0.01]
[1759901428649,2.82545813,4439.2,4439.1,0.011]
[1759901428944,3.36264212,4439.2,4439.1,0.011]
[1759901433724,5.91464212,4439.2,4439.1,0.011]
[1759901437060,5.91464212,4439.2,4439.1,1e-08]
[1759901437225,32.88641038,4438.9,4438.8,0.001]
[1759901437554,38.04323777,4438.9,4438.8,0.001]
[1759901437751,40.75580822,4438.9,4438.8,0.001]
[1759901438660,40.27819591,4438.9,4438.8,0.001]
[1759901440651,29.80119591,4438.9,4438.8,0.001]
[1759901440974,32.88666416,4438.4,4438.3,0.001]
[1759901441280,39.81764969,4438.4,4438.3,0.001]
[1759901441437,40.29184969,4438.4,4438.3,0.001]
[1759901443680,6.89903461,4438.4,4438.3,0.001]
[1759901443875,2.72726416,4438.4,4438.3,0.001]
[1759901444079,2.74972865,4438.4,4438.3,0.001]
[1759901444583,0.4742,4438.4,4438.3,0.001]
[1759901444809,0.49666449,4438.4,4438.3,0.001]
[1759901445113,3.60262105,4439.5,4438.5,2.2529704]
[1759901445285,0.02246449,4439.4,4438.6,2.2754532]
[1759901445456,0.02246449,4439.4,4438.6,0.02252962]
[1759901445655,0.02246449,4439.4,4438.3,0.1514]
[1759901445656,0.02246449,4439.4,4438.4,0.02253064]
[1759901445905,0.87587405,4439.5,4439.2,2.25263806]
[1759901446195,0.02246449,4439.8,4439.3,2.25260307]
[1759901446410,0.02246449,4439.8,4438.7,4.80490029]
[1759901446552,0.9562,4440.7,4439.0,2.25275963]
[1759901446754,0.02446449,4440.5,4439.9,2.25225927]
[1759901446964,0.02446449,4440.5,4439.1,0.02252708]
[1759901446965,0.02446449,4440.5,4440.0,2.27477358]
[1759901447569,0.02446449,4440.5,4440.0,0.02252252]
[1759901447771,0.4742,4440.4,4439.3,2.552]
[1759901447974,0.49666449,4440.3,4439.3,2.552]
[1759901448284,0.4742,4440.2,4438.4,2.25304364]
[1759901448591,2.25225225,4440.0,4438.3,0.001]
[1759901448763,2.25281148,4438.9,4438.3,0.001]
[1759901449159,2.25295848,4438.7,4438.3,0.001]
[1759901449371,0.02246449,4438.6,4438.3,0.001]
[1759901449777,0.02246449,4439.4,4438.3,0.001]
[1759901450017,2.2526698,4439.2,4438.3,0.001]
[1759901450160,0.49426449,4439.1,4438.3,0.001]
[1759901450366,0.02246449,4439.1,4438.3,0.001]
[1759901450565,0.4718,4439.5,4438.3,0.001]
[1759901450886,0.112,4439.0,4438.3,0.113]
[1759901451191,0.02246449,4438.9,4438.3,0.113]
[1759901451396,0.02246449,4438.9,4438.3,0.35061397]
[1759901451793,0.02246449,4438.9,4438.3,0.113]
[1759901452097,0.5838,4439.0,4438.3,0.113]
[1759901452098,0.112,4439.0,4438.4,2.27558884]
[1759901452493,0.112,4439.0,4438.5,2.25300186]
[1759901452716,0.112,4439.0,4438.4,0.02253064]
[1759901452904,0.112,4439.0,4438.4,2.27558855]
[1759901453101,0.112,4439.0,4438.5,0.02253013]
[1759901453279,0.02246449,4438.9,4438.3,0.113]
[1759901453483,0.112,4439.0,4438.3,0.113]
[1759901453684,0.112,4439.0,4438.4,0.02253064]
[1759901454713,0.112,4439.0,4438.4,2.27558753]
[1759901454915,0.112,4439.0,4438.4,0.02253064]
[1759901455684,0.112,4439.0,4438.3,0.113]
[1759901455996,0.02246449,4438.9,4438.4,2.25305065]
[1759901456179,0.112,4439.3,4438.7,2.25287099]
[1759901456381,0.49426449,4439.9,4438.8,0.02252861]
[1759901456604,0.112,4439.6,4438.9,0.112]
[1759901456800,0.112,4439.2,4438.6,0.689]
[1759901457213,0.13446449,4439.2,4438.6,0.689]
[1759901457402,0.112,4439.2,4438.9,2.25280641]
[1759901457603,0.112,4439.2,4438.7,0.02252911]
[1759901457604,0.112,4439.2,4438.8,2.25285857]
[1759901457804,0.112,4439.2,4438.6,0.689]
[1759901457805,0.112,4439.6,4438.9,0.1345281]
[1759901457990,0.02246449,4439.5,4438.9,0.1345281]
[1759901458185,0.02246449,4439.5,4438.9,2.38733704]
[1759901458517,0.112,4439.6,4438.9,0.1345281]
[1759901458886,0.112,4439.6,4439.0,2.25271708]
[1759901459123,0.112,4439.6,4439.1,2.25270161]
[1759901459323,0.02246449,4440.0,4439.4,0.112]
[1759901459726,0.02246449,4440.0,4439.4,2.36453789]
[1759901459895,0.13446449,4440.2,4439.6,2.25241542]
[1759901460100,0.42070553,4440.2,4439.6,2.2524439]
[1759901460289,0.42070553,4440.2,4439.7,0.02252404]
[1759901460614,0.02246449,4440.1,4439.4,2.664]
[1759901460814,0.112,4440.2,4439.4,2.664]
[1759901460815,0.5838,4440.2,4439.4,2.664]
[1759901461015,0.02246449,4440.1,4439.4,2.664]
[1759901461321,0.02246449,4440.1,4439.4,4.9165483]
[1759901461501,0.02246449,4440.1,4439.6,2.25243687]
[1759901461702,0.02246449,4440.1,4439.4,2.664]
[1759901461901,0.112,4440.2,4439.5,2.25246287]
[1759901462099,0.112,4440.2,4439.5,2.25250591]
[1759901462290,0.112,4440.2,4439.4,4.9165076]
[1759901462491,0.112,4440.2,4439.4,2.664]
[1759901462826,0.112,4440.2,4439.5,0.02252505]
[1759901463118,0.002,4440.3,4439.8,0.112]
[1759901463721,0.002,4440.3,4439.9,0.02252302]
[1759901464412,0.4718,4440.2,4439.6,2.552]
[1759901464611,0.02246449,4440.1,4439.6,2.552]
[1759901464916,0.114,4440.3,4439.6,2.552]
[1759901464917,0.02246449,4440.2,4439.6,2.552]
[1759901466321,0.002,4440.3,4439.9,2.25230233]
[1759901466619,0.002,4440.3,4440.0,0.02252252]
[1759901466988,0.002,4440.3,4439.9,0.02252302]
[1759901467211,0.2388002,4440.3,4439.9,0.02252302]
[1759901467420,0.4718,4440.2,4439.8,0.112]
[1759901467586,0.4718,4440.1,4439.8,0.112]
[1759901467786,0.4718,4440.1,4438.3,4.17410833]
[1759901467787,0.4718,4440.1,4439.7,2.551]
[1759901468200,0.13646449,4440.3,4439.7,2.551]
[1759901468427,2.38857477,4440.3,4439.7,2.551]
[1759901468747,0.64789851,4440.3,4439.7,2.551]
[1759901468922,0.114,4440.3,4439.7,2.551]
[1759901469115,0.002,4440.3,4439.9,2.25226136]
[1759901469312,0.002,4440.3,4439.9,2.2522676]
[1759901469904,0.002,4440.3,4440.0,2.551]
[1759901470105,0.002,4440.3,4440.1,2.551]
[1759901470624,0.002,4440.3,4440.2,2.2521508]
[1759901470828,0.002,4440.3,4440.2,2.5370723]
[1759901471323,0.002,4440.3,4440.2,2.5145508]
[1759901471525,0.002,4440.3,4440.2,2.5370723]
[1759901471904,0.002,4440.3,4440.2,2.4250723]
[1759901472103,0.002,4440.3,4440.2,2.5145508]
[1759901472835,0.002,4440.3,4440.2,3.1706723]
[1759901473240,0.002,4440.3,4440.2,4.9786723]
[1759901473533,0.002,4440.3,4440.2,5.0681508]
[1759901474028,0.002,4440.3,4440.2,19.5681508]
[1759901475197,0.002,4440.3,4440.2,22.1191508]
[1759901475809,0.002,4440.3,4440.2,18.9345508]
[1759901476010,0.002,4440.3,4440.2,2.663]
[1759901476211,0.002,4440.3,4440.2,0.112]
[1759901476415,0.002,4440.3,4440.2,2.663]
[1759901476615,0.002,4440.3,4440.2,2.551]
[1759901476616,0.4738,4440.3,4440.2,2.551]
[1759901476821,0.74883043,4440.3,4440.2,2.551]
[1759901477023,0.77129492,4440.3,4440.2,2.551]
[1759901477237,0.4738,4440.3,4440.2,2.551]
[1759901477405,0.4738,4440.3,4437.9,0.001]
[1759901477605,0.4738,4440.3,4439.2,0.112]
[1759901477606,2.74642295,4440.2,4439.2,0.112]
[1759901477813,2.36429442,4440.0,4439.3,2.551]
[1759901478111,0.02246449,4439.9,4439.3,2.551]
[1759901478734,0.112,4440.0,4439.4,0.02252556]
[1759901479038,0.112,4440.0,4439.3,2.551]
[1759901479039,0.5838,4440.0,4439.3,2.551]
[1759901479949,0.49426449,4439.9,4439.4,2.551]
[1759901480127,0.3083125,4439.9,4439.4,2.551]
[1759901480309,0.02246449,4439.9,4439.4,2.551]
[1759901480509,0.46526449,4439.9,4439.4,2.551]
[1759901481626,0.02246449,4439.9,4439.4,2.551]
[1759901481830,0.4428,4439.9,4439.4,2.551]
[1759901482030,0.112,4440.0,4439.4,2.551]
[1759901482031,0.13446449,4440.0,4439.4,2.551]
[1759901482237,0.112,4440.0,4439.4,2.551]
[1759901482618,0.112,4440.0,4439.4,2.57352556]
[1759901483014,0.112,4440.0,4439.5,2.25250591]
[1759901483220,0.46726449,4440.3,4439.4,2.57352556]
[1759901483221,0.002,4440.3,4439.7,0.112]
[1759901483417,0.002,4440.3,4439.8,2.551]
[1759901483637,0.26350574,4440.3,4439.8,2.57352353]
[1759901484141,0.002,4440.3,4439.9,0.02252302]